{"text_format":"1","workbook":"xlsx","n_sheets":5,"sheets":["入力フォーム","解約・払出請求書（金融機関等用）","解約・払出請求書（勤務先用）","解約・払出請求書（加入者控）","リスト"],"not_rendered":{"charts":0,"images":0,"macros":1,"external_links":0,"defined_names":3,"comments":1,"pivot_tables":0},"unopened":[],"bounds":{"document_bytes":16777216,"sheet_cells":100000,"rows_first":2000,"rows_last":500,"rows_between":2000,"halvings":0,"cell_chars":16384,"cell_head_chars":4096},"cells_cut":0,"cells_raw":0,"read":"whole","date_system":"1900"}

{"sheet":"入力フォーム","index":0,"n_rows":104,"n_cols":19,"rows_kept":104,"cut":false,"hidden":false,"merged":[[103,0,105,23],[20,3,20,9],[0,0,0,23],[1,0,1,23],[2,0,2,9],[8,3,8,11],[10,3,10,7],[12,3,12,7],[14,3,14,6],[16,3,16,19],[18,3,18,19],[30,4,30,5],[30,10,30,11],[66,0,66,9],[44,5,46,10],[44,12,46,16],[49,5,50,16],[56,9,56,13],[57,9,57,13],[62,5,62,13],[64,4,64,11],[53,9,53,13],[54,9,54,13],[82,0,82,23],[73,4,73,17],[100,0,102,23],[83,0,83,9],[94,4,94,14],[96,4,96,14],[98,8,98,19]]}
["財産形成（年金・住宅）貯蓄解約・払出請求書"]
["　　　　　　　　○にはチェックを、□内には直接入力又は選択して入力し、内容を確認の上、最下部の印刷ボタンを押下してください。"]
["１～１１　全員入力必須"]
[null,null,1,"財産形成貯蓄の種類"]
[null,null,null,0]
[]
[]
[null,null,2,"取扱金融機関等"]
[]
[null,null,3,"勤務先（給与支給庁（本庁）を選択）"]
[]
[null,null,4,"生年月日"]
[]
[null,null,5,"郵便番号"]
[]
[null,null,6,"住所（漢字）"]
[]
[null,null,7,"住所（ふりがな）"]
[]
[null,null,8,"電話番号"]
[]
[null,null,9,"男女別"]
[null,null,null,0]
[]
[null,null,10,"解約・払出内容",null,null,null,null,null,null,null,null,null,null,null,null,null,null,"※10以降、選択する必要がないのにチェックを入れてしまった"]
[null,null,null,0,null,null,null,null,null,null,null,null,null,null,null,null,null,null,"　場合は以下の方法で解除してください。"]
[null,null,null,null,"一部払出請求額",null,null,null,null,null,null,null,null,null,null,null,null,null,"解除方法⇒"]
[null,null,null,null,"百万",null,null,"千",null,null,"円"]
[]
[null,null,null,null,"（ゆうちょ銀行の証書払等請求の場合、次を入力）"]
[null,null,null,null,null,null,"年",null,"月分から",null,null,null,"年",null,"月分まで"]
[]
[]
[null,null,null,null,"口座を残し、全額払い出す場合"]
[]
[]
[null,null,null,null,"口座を解約し、全額払い出す場合"]
[null,null,null,null,"（生命保険の場合、次により選択）"]
[]
[]
[]
[null,null,11,"受取方法"]
[null,null,null,"11-1","受取方法及び金融機関名等"]
[null,null,null,null,0]
[null,null,null,null,null,null,null,null,null,null,null,"銀行",null,null,null,null,null,"支店"]
[null,null,null,null,null,null,null,null,null,null,null,"金庫"]
[null,null,null,null,null,null,null,null,null,null,null,"組合"]
[]
[null,null,null,null,null,"（ゆうちょ銀行その他の場合）"]
[]
[]
[null,null,null,"11-2","名義"]
[null,null,null,null,0]
[null,null,null,null,null,"氏名（漢字）"]
[null,null,null,null,null,"氏名（ふりがな）"]
[]
[null,null,null,null,null,"氏名（漢字）"]
[null,null,null,null,null,"氏名（ふりがな）"]
[null,null,null,"11-3","種目"]
[null,null,null,null,0]
[]
[]
[]
[null,null,null,"11-4","口座番号"]
[null,null,null,null,null,null,null,null,null,null,null,null,null,null,null,null,null,null,"一般：　　　　　年金：　　　　　又は　　　　　住宅：　　　"]
[]
["１２～１３　住宅のみ"]
[null,null,12,"解約払出理由"]
[null,null,null,0]
[]
[]
[]
[]
[]
[null,null,13,"提出書類（複数選択可）"]
[null,null,null,0]
[null,null,null,0]
[null,null,null,0]
[]
[]
[null,null,null,null,null,null,null,null,null,null,null,null,null,null,null,null,null,null,"住宅：　　　　　又は"]
[]
["財産形成非課税（年金・住宅）貯蓄廃止申告書"]
["１４～１６　年金・住宅のうち解約の場合のみ"]
[null,null,14,"種別"]
[null,null,null,0]
[null,null,null,1]
[null,null,null,1]
[null,null,null,1]
[null,null,15,"最高限度額"]
[null,null,null,"百万",null,null,"千",null,null,"円"]
[]
[null,null,16,"受入機関の営業所等"]
[null,null,null,"16-1","所在地"]
[]
[null,null,null,"16-2","名称"]
[]
[]
[null,null,null,null,null,null,null,null,"印刷前にプレビュー画面は表示しませんので、右シート等から記載内容をご確認ください。"]
[]
[]
[]
[]
["印刷後、氏名の自署及び押印を忘れずにしてください。"]

{"sheet":"解約・払出請求書（金融機関等用）","index":1,"n_rows":73,"n_cols":53,"rows_kept":73,"cut":false,"hidden":false,"merged":[[64,26,64,27],[63,8,63,17],[60,4,60,17],[55,5,55,34],[42,4,42,7],[47,4,47,7],[32,11,32,12],[47,8,47,25],[34,9,34,12],[35,9,35,12],[64,18,64,19],[64,20,64,21],[64,22,64,23],[64,24,64,25],[67,1,68,4],[67,5,67,7],[67,8,67,29],[68,5,68,7],[68,8,68,29],[65,1,66,4],[32,13,32,14],[32,15,32,16],[32,17,32,18],[32,19,32,20],[32,21,32,22],[36,27,36,28],[35,14,35,15],[61,4,61,17],[30,1,41,2],[34,14,34,15],[42,1,48,2],[36,4,36,7],[40,4,40,7],[41,26,41,29],[65,5,65,7],[66,5,66,7],[65,8,65,29],[66,8,66,18],[70,42,70,45],[70,48,70,50],[71,1,72,4],[71,5,71,7],[71,8,71,29],[72,5,72,7],[72,8,72,18],[72,19,72,21],[72,22,72,29],[69,1,70,4],[69,5,69,7],[69,8,69,29],[70,5,70,7],[70,8,70,18],[70,19,70,21],[70,22,70,29],[66,19,66,21],[66,22,66,29],[64,8,64,17],[58,1,59,4],[58,5,59,34],[65,31,66,35],[54,29,54,34],[55,1,55,4],[56,1,57,4],[62,1,62,7],[63,1,64,7],[62,9,62,11],[62,13,62,16],[62,22,62,29],[62,18,62,20],[63,28,63,29],[64,28,64,29],[63,18,63,19],[63,20,63,21],[63,22,63,23],[63,24,63,25],[63,26,63,27],[53,1,54,6],[56,5,57,34],[30,4,30,7],[30,27,30,28],[28,25,28,29],[42,26,43,27],[51,15,52,20],[42,16,45,17],[46,29,47,31],[42,8,45,15],[42,18,45,25],[41,31,41,34],[31,9,31,10],[31,11,31,12],[31,13,31,14],[31,15,31,16],[31,17,31,18],[31,19,31,20],[31,21,31,22],[32,9,32,10],[51,7,52,14],[51,21,52,29],[42,29,43,30],[44,29,45,30],[44,33,44,35],[47,32,48,53],[20,1,21,4],[20,5,21,10],[20,11,21,11],[20,12,21,14],[20,15,21,15],[20,16,21,19],[20,26,21,53],[26,1,28,2],[26,4,26,6],[26,8,26,11],[26,13,26,16],[28,4,28,6],[26,25,26,28],[26,30,26,34],[56,37,56,54],[59,38,60,40],[20,22,21,25],[13,22,14,25],[13,26,14,48],[15,22,15,25],[10,30,11,31],[10,32,11,33],[10,34,11,35],[28,35,28,47],[28,31,28,33],[50,45,50,53],[51,45,51,53],[42,42,42,51],[43,42,43,51],[42,38,42,41],[44,37,44,39],[44,41,44,43],[45,42,45,51],[11,49,14,53],[15,49,19,53],[10,46,11,48],[7,1,8,4],[7,19,8,20],[10,26,11,27],[10,28,11,29],[7,5,8,18],[16,1,19,4],[10,1,11,4],[12,1,15,4],[12,22,12,25],[16,27,16,34],[12,5,13,21],[15,26,15,48],[17,26,19,48],[10,40,11,41],[10,42,11,43],[10,44,11,45],[12,26,12,48],[7,47,8,53],[10,49,10,53],[1,14,1,18],[2,14,2,18],[3,14,3,18],[1,20,3,36],[26,36,26,42],[26,22,28,23],[28,7,28,19],[10,5,11,21],[10,22,11,25],[10,36,11,37],[10,38,11,39],[14,20,15,20],[14,21,15,21],[14,5,15,11],[14,12,15,12],[14,13,15,13],[14,14,15,14],[14,15,15,15],[16,22,19,25],[16,5,19,21],[14,16,15,16],[14,17,15,17],[14,18,15,18],[14,19,15,19]]}
["（国家公務員用）"]
[null,null,null,null,null,null,null,null,null,null,null,null,null,{"$f":"IF(入力フォーム!$D$5=1,\"☑\",\"□\")","v":"□"},"財  産  形  成",null,null,null,null,null,"貯蓄解約・払出請求書"]
[null,null,null,null,null,null,null,null,null,null,null,null,null,{"$f":"IF(入力フォーム!$D$5=2,\"☑\",\"□\")","v":"□"},"財産形成年金"]
[null,null,null,null,null,null,null,null,null,null,null,null,null,{"$f":"IF(入力フォーム!$D$5=3,\"☑\",\"□\")","v":"□"},"財産形成住宅"]
[]
[]
[]
[null,"取扱金融\n機 関 等",null,null,null,{"$f":"入力フォーム!D9","v":0},null,null,null,null,null,null,null,null,null,null,null,null,null,"御中",null,null,null,null,null,null,null,null,null,null,null,null,null,null,null,null,null,null,null,null,null,null,null,null,null,null,null,{"$f":"TODAY()","v":"2024-07-18"}]
[]
[]
[null,"勤  務  先",null,null,null,{"$f":"入力フォーム!D11","v":0},null,null,null,null,null,null,null,null,null,null,null,null,null,null,null,null,"職 員 番 号",null,null,null,null,null,null,null,null,null,null,null,null,null,null,null,null,null,null,null,null,null,null,null,null,null,null,"お届出印"]
[]
[null,"所属部課\n同  番  号",null,null,null,null,null,null,null,null,null,null,null,null,null,null,null,null,null,null,null,null,"ふりがな"]
[null,null,null,null,null,null,null,null,null,null,null,null,null,null,null,null,null,null,null,null,null,null,"氏　    名"]
[]
[null,null,null,null,null,null,null,null,null,null,null,null,null,null,null,null,null,null,null,null,null,null,"ふりがな",null,null,null,{"$f":"入力フォーム!D19","v":0},null,null,null,null,null,null,null,null,null,null,null,null,null,null,null,null,null,null,null,null,null,null,"銀行・労金・信託・信用金庫・信用組合の場合記入は不要"]
[null,"備　　考",null,null,null,null,null,null,null,null,null,null,null,null,null,null,null,null,null,null,null,null,"住　    所",null,null,null,"(〒",{"$f":"入力フォーム!D15","v":0},null,null,null,null,null,null,null,")"]
[null,null,null,null,null,null,null,null,null,null,null,null,null,null,null,null,null,null,null,null,null,null,null,null,null,null,{"$f":"入力フォーム!D17","v":0}]
[]
[]
[null,"生年月日",null,null,null,{"$f":"入力フォーム!D13","v":"00:00:00"},null,null,null,null,null,"(満",{"$f":"DATEDIF(F21,TODAY(),\"Y\")","v":124},null,null,"歳)","男女別",null,null,null,"男","女","電 話 番 号",null,null,null,{"$f":"入力フォーム!D21","v":0}]
[null,null,null,null,null,null,null,null,null,null,null,null,null,null,null,null,null,null,null,null,{"$f":"IF(入力フォーム!$D$23=1,\"☑\",\"□\")","v":"□"},{"$f":"IF(入力フォーム!$D$23=2,\"☑\",\"□\")","v":"□"}]
[]
[null,null,null,"私の、財産形成貯蓄、財産形成年金貯蓄又は財産形成住宅貯蓄につき、下記のとおり解約・払出しの請求をしますので、貴行（社・金庫・組合）所定の計算方法により計算のうえ、払い出して"]
[null,null,"ください。なお、振込手数料等を要する場合には、払出金から差し引いてください。"]
[]
[null,"解約\n払出\n理由",null,{"$f":"IF(入力フォーム!$D$69=1,\"☑\",\"□\")","v":"□"},"住宅購入",null,null,{"$f":"IF(入力フォーム!$D$69=2,\"☑\",\"□\")","v":"□"},"住宅の新築",null,null,null,{"$f":"IF(入力フォーム!$D$69=3,\"☑\",\"□\")","v":"□"},"住宅増改築",null,null,null,null,null,null,null,null,"提出\n書類",null,{"$f":"IF(入力フォーム!$D$76=1,\"☑\",\"□\")","v":"□"},"売買契約書",null,null,null,{"$f":"IF(入力フォーム!$D$77=1,\"☑\",\"□\")","v":"□"},"工事請負契約書",null,null,null,null,{"$f":"IF(入力フォーム!$D$78=1,\"☑\",\"□\")","v":"□"},"住宅の登記事項証明書"]
[]
[null,null,null,{"$f":"IF(入力フォーム!$D$69=4,\"☑\",\"□\")","v":"□"},"その他（",null,null,{"$f":"IF(入力フォーム!$E$74=\"\",\"\",入力フォーム!$E$74)","v":""},null,null,null,null,null,null,null,null,null,null,null,null,"）",null,null,null,{"$f":"IF(入力フォーム!$D$80=1,\"☑\",\"□\")","v":"□"},"住民票の写し",null,null,null,null,{"$f":"IF(入力フォーム!$D$81=1,\"☑\",\"□\")","v":"□"},"その他",null,null,null,"（住宅貯蓄の払出しの場合の提出書類）"]
[]
[null,"解約・払出内容",null,{"$f":"IF(入力フォーム!D26=1,\"☑\",\"□\")","v":"□"},"一 部 払 出",null,null,null,"一部払出請求額",null,null,null,null,null,null,null,null,null,null,null,null,null,null,null,null,null,null,"（注）",null,"1.","年金貯蓄の一部払出し及び住宅貯蓄の住宅取得等目的以外の一部"]
[null,null,null,null,null,null,null,null,null,"百万",null,null,null,null,null,"千",null,null,null,null,null,"円",null,null,null,null,null,null,null,null,"払出しはできません。"]
[null,null,null,null,null,null,null,null,null,{"$f":"IF(入力フォーム!E29=\"\",\"\",入力フォーム!E29)","v":""},null,{"$f":"IF(入力フォーム!F29=\"\",\"\",入力フォーム!F29)","v":""},null,{"$f":"IF(入力フォーム!G29=\"\",\"\",入力フォーム!G29)","v":""},null,{"$f":"IF(入力フォーム!H29=\"\",\"\",入力フォーム!H29)","v":""},null,{"$f":"IF(入力フォーム!I29=\"\",\"\",入力フォーム!I29)","v":""},null,{"$f":"IF(入力フォーム!J29=\"\",\"\",入力フォーム!J29)","v":""},null,{"$f":"IF(入力フォーム!K29=\"\",\"\",入力フォーム!K29)","v":""},null,null,null,null,null,null,null,"2.","自動継続定期預金、期日指定定期預金、生命・損害保険の場合は、"]
[null,null,null,null,null,null,null,null,null,"（ゆうちょ銀行の証書払等請求の場合）",null,null,null,null,null,null,null,null,null,null,null,null,null,null,null,null,null,null,null,null,"概算払出請求額（千円単位（期日指定定期預金の場合１万円以上））"]
[null,null,null,null,null,null,null,null,null,{"$f":"IF(入力フォーム!E31=\"\",\"\",入力フォーム!E31)","v":""},null,null,null,"年",{"$f":"IF(入力フォーム!H31=\"\",\"\",入力フォーム!H31)","v":""},null,"月分から",null,null,null,null,null,null,null,null,null,null,null,null,null,"を記入してください。"]
[null,null,null,null,null,null,null,null,null,{"$f":"IF(入力フォーム!K31=\"\",\"\",入力フォーム!K31)","v":""},null,null,null,"年",{"$f":"IF(入力フォーム!N31=\"\",\"\",入力フォーム!N31)","v":""},null,"月分まで",null,null,null,null,null,null,null,null,null,null,null,null,"3.","積立定期預金の場合、満期時以外は一部払出しはできません。"]
[null,null,null,{"$f":"IF(入力フォーム!D26=2,\"☑\",\"□\")","v":"□"},"全 額 払 出",null,null,null,"口座を残し、全額払い出す。",null,null,null,null,null,null,null,null,null,null,null,null,null,null,null,null,null,null,"（注）",null,"1.","定期預金、有価証券、生命保険及びゆうちょ銀行の一般財産形成"]
[null,null,null,null,null,null,null,null,null,null,null,null,null,null,null,null,null,null,null,null,null,null,null,null,null,null,null,null,null,null,"貯蓄の場合に限られます。"]
[null,null,null,null,null,null,null,null,null,null,null,null,null,null,null,null,null,null,null,null,null,null,null,null,null,null,null,null,null,"2.","年金貯蓄の全額払い出しはできません。"]
[null,null,null,null,null,null,null,null,null,null,null,null,null,null,null,null,null,null,null,null,null,null,null,null,null,null,null,null,null,"3.","積立定期預金の場合、満期時以外は全額払出しはできません。"]
[null,null,null,{"$f":"IF(入力フォーム!D26=3,\"☑\",\"□\")","v":"□"},"解　　  約",null,null,null,"口座を解約し、全額払い出す。",null,null,null,null,null,null,null,null,null,"（注）年金・住宅貯蓄の場合、下記の廃止申告書にも記入してください。"]
[null,null,null,null,null,null,null,null,null,"（生命保険の場合、次により選択してください。",null,null,null,null,null,null,null,null,null,null,null,null,null,null,"ー",{"$f":"IF(入力フォーム!E39=1,\"☑\",\"□\")","v":"□"},"中途解約",null,null,null,{"$f":"IF(入力フォーム!E39=2,\"☑\",\"□\")","v":"□"},"満期払出",null,null,null,"）"]
[null,"受取方法",null,{"$f":"IF(入力フォーム!E44=1,\"☑\",\"□\")","v":"□"},"口 座 振 込",null,null,null,{"$f":"IF(入力フォーム!$F$45=\"\",\"\",入力フォーム!$F$45)","v":""},null,null,null,null,null,null,null,"銀行\n金庫\n組合",null,{"$f":"IF(入力フォーム!$M$45=\"\",\"\",入力フォーム!$M$45)","v":""},null,null,null,null,null,null,null,"支店",null,null,"名義",null,{"$f":"IF(入力フォーム!$E$53=1,\"☑\",\"□\")","v":"□"},"請求者",null,null,null,null,null,"（ふりがな）",null,null,null,{"$f":"IF(AF43=\"☑\",入力フォーム!J55,IF(AF44=\"☑\",入力フォーム!J58,\"\"))","v":""}]
[null,null,null,null,null,null,null,null,null,null,null,null,null,null,null,null,null,null,null,null,null,null,null,null,null,null,null,null,null,null,null,{"$f":"IF(入力フォーム!$E$53=2,\"☑\",\"□\")","v":"□"},"その他（証券契約を除く）",null,null,null,null,null,null,null,null,null,{"$f":"IF(AF43=\"☑\",入力フォーム!J54,IF(AF44=\"☑\",入力フォーム!J57,\"\"))","v":""}]
[null,null,null,null,null,null,null,null,null,null,null,null,null,null,null,null,null,null,null,null,null,null,null,null,null,null,null,null,null,"種目",null,null,{"$f":"IF(入力フォーム!$E$60=1,\"☑\",\"□\")","v":"□"},"普通預金",null,null,{"$f":"IF(入力フォーム!$E$60=2,\"☑\",\"□\")","v":"□"},"当座預金",null,null,{"$f":"IF(入力フォーム!$E$60=3,\"☑\",\"□\")","v":"□"},"その他"]
[null,null,null,null,null,null,null,null,null,null,null,null,null,null,null,null,null,null,null,null,null,null,null,null,null,null,null,null,null,null,null,null,null,null,null,null,null,null,null,null,null,"（",{"$f":"IF(入力フォーム!F63=\"\",\"\",入力フォーム!F63)","v":""},null,null,null,null,null,null,null,null,null,"）"]
[null,null,null,null,null,null,null,null,null,null,null,null,null,null,null,null,null,null,null,null,null,null,null,null,null,null,null,null,null,"口座番号"]
[null,null,null,{"$f":"IF(入力フォーム!E44=2,\"☑\",\"□\")","v":"□"},"そ   の   他",null,null,null,{"$f":"IF(入力フォーム!$F$50=\"\",\"\",入力フォーム!$F$50)","v":""},null,null,null,null,null,null,null,null,null,null,null,null,null,null,null,null,null,null,null,null,null,null,null,{"$f":"IF(入力フォーム!E65=\"\",\"\",入力フォーム!E65)","v":""}]
[null,null,null,null,null,null,null,null,null,null,null,null,null,null,null,null,null,null,null,"（ゆうちょ銀行その他の場合）"]
[]
[null,null,null,null,null,null,null,null,null,null,null,null,null,null,null,null,null,null,null,null,null,null,null,null,null,null,null,null,null,null,null,null,null,null,null,null,null,null,null,null,null,null,null,null,null,"事務担当者確認印"]
[null,null,null,null,null,null,null,"財産形成非課税",null,null,null,null,null,null,null,{"$f":"IF(AND(N3=\"☑\",D41=\"☑\"),\"年金\",IF(AND(N4=\"☑\",D41=\"☑\"),\"住宅\",\"年金・住宅\"))","v":"年金・住宅"},null,null,null,null,null,"貯蓄廃止申告書",null,null,null,null,null,null,null,null,null,null,null,null,null,null,null,null,null,null,null,null,null,null,null,"（給与天引の停止等）"]
[]
[]
[null,null,null,null,null,null,null,"税　務　署　長　殿",null,null,null,null,null,null,null,null,null,null,null,null,null,null,null,null,null,null,null,null,null,{"$f":"IF(AND(D41=\"☑\",OR(N3=\"☑\",N4=\"☑\")),AV8,\"　　年　　月　　日\")","v":"　　年　　月　　日"}]
[null,"ふりがな"]
[null,"氏　　名",null,null,null,null,null,null,null,null,null,null,null,null,null,null,null,null,null,null,null,null,null,null,null,null,null,null,null,null,null,null,null,null,null,null,null,"（金融機関等使用欄）"]
[]
[null,"住　　所",null,null,null,{"$f":"IF(AND(OR(N3=\"☑\",N4=\"☑\"),D41=\"☑\"),入力フォーム!D17,\"\")","v":""}]
[null,null,null,null,null,null,null,null,null,null,null,null,null,null,null,null,null,null,null,null,null,null,null,null,null,null,null,null,null,null,null,null,null,null,null,null,null,null,"番　号"]
[null,null,null,null,{"$f":"IF(AND(N4=\"☑\",D41=\"☑\"),\"\",リスト!H2)","v":"財産形成年金貯蓄につき租税特別措置法第４条の３第１項"}]
[null,"下記の",null,null,{"$f":"IF(AND(N3=\"☑\",D41=\"☑\"),\"\",リスト!H3)","v":"財産形成住宅貯蓄につき租税特別措置法第４条の２第１項"},null,null,null,null,null,null,null,null,null,null,null,null,null,null,"の規定の適用を受けることをやめたいので、この旨申告します。"]
[null,"種　　　　　　別",null,null,null,null,null,null,{"$f":"IF(入力フォーム!$D$86=1,\"☑\",\"□\")","v":"□"},"預貯金",null,null,{"$f":"IF(入力フォーム!$D$86=2,\"☑\",\"□\")","v":"□"},"合同運用信託",null,null,null,{"$f":"IF(入力フォーム!$D$86=3,\"☑\",\"□\")","v":"□"},"有価証券",null,null,{"$f":"IF(入力フォーム!$D$86=4,\"☑\",\"□\")","v":"□"},"生命・損害保険の保険料"]
[null,"最　高　限　度　額",null,null,null,null,null,null,"百万",null,null,null,null,null,null,null,null,null,null,null,null,null,"千",null,null,null,null,null,"円"]
[null,null,null,null,null,null,null,null,{"$f":"IF(入力フォーム!$D$92=\"\",\"\",入力フォーム!$D$92)","v":""},null,null,null,null,null,null,null,null,null,{"$f":"IF(入力フォーム!$E$92=\"\",\"\",入力フォーム!$E$92)","v":""},null,{"$f":"IF(入力フォーム!$F$92=\"\",\"\",入力フォーム!$F$92)","v":""},null,{"$f":"IF(入力フォーム!$G$92=\"\",\"\",入力フォーム!$G$92)","v":""},null,{"$f":"IF(入力フォーム!$H$92=\"\",\"\",入力フォーム!$H$92)","v":""},null,{"$f":"IF(入力フォーム!$I$92=\"\",\"\",入力フォーム!$I$92)","v":""},null,{"$f":"IF(入力フォーム!$J$92=\"\",\"\",入力フォーム!$J$92)","v":""}]
[null,"受入機関の営業所等",null,null,null,"所在地",null,null,{"$f":"IF(入力フォーム!$E$95=\"\",\"\",入力フォーム!$E$95)","v":""},null,null,null,null,null,null,null,null,null,null,null,null,null,null,null,null,null,null,null,null,null,null,"受入機関の\n受理日付印"]
[null,null,null,null,null,"名　称",null,null,{"$f":"IF(入力フォーム!$E$97=\"\",\"\",入力フォーム!$E$97)","v":""},null,null,null,null,null,null,null,null,null,null,"法人番号"]
[null,"勤　務　先",null,null,null,"所在地",null,null,{"$f":"IF(I69=\"\",\"\",VLOOKUP(I69,リスト!A2:B82,2,FALSE))","v":""}]
[null,null,null,null,null,"名　称",null,null,{"$f":"IF(AND(OR(N3=\"☑\",N4=\"☑\"),D41=\"☑\"),F11,\"\")","v":""}]
[null,"賃金の支払者",null,null,null,"所在地",null,null,{"$f":"I68","v":""}]
[null,null,null,null,null,"名　称",null,null,{"$f":"I69","v":""},null,null,null,null,null,null,null,null,null,null,"法人番号",null,null,{"$f":"IF(I71=\"\",\"\",VLOOKUP(I71,リスト!A2:C82,3,FALSE))","v":""},null,null,null,null,null,null,null,null,null,null,null,null,null,null,null,null,null,null,null,"受付日付印",null,null,null,null,null,"検印"]
[null,"事務代行先",null,null,null,"所在地"]
[null,null,null,null,null,"名　称",null,null,null,null,null,null,null,null,null,null,null,null,null,"法人番号"]

{"sheet":"解約・払出請求書（勤務先用）","index":2,"n_rows":73,"n_cols":53,"rows_kept":73,"cut":false,"hidden":false,"merged":[[1,14,1,18],[1,20,3,36],[2,14,2,18],[3,14,3,18],[7,1,8,4],[7,19,8,20],[7,47,8,53],[7,5,8,18],[10,1,11,4],[10,5,11,21],[10,22,11,25],[10,26,11,27],[10,28,11,29],[10,30,11,31],[10,32,11,33],[10,34,11,35],[10,49,10,53],[11,49,14,53],[12,1,15,4],[12,5,13,21],[12,22,12,25],[12,26,12,48],[13,22,14,25],[13,26,14,48],[14,5,15,11],[14,12,15,12],[10,36,11,37],[10,38,11,39],[10,40,11,41],[10,42,11,43],[10,44,11,45],[10,46,11,48],[14,19,15,19],[14,20,15,20],[14,21,15,21],[15,22,15,25],[15,26,15,48],[15,49,19,53],[14,13,15,13],[14,14,15,14],[14,15,15,15],[14,16,15,16],[14,17,15,17],[14,18,15,18],[26,1,28,2],[26,4,26,6],[26,8,26,11],[26,13,26,16],[26,22,28,23],[26,25,26,28],[26,30,26,34],[16,1,19,4],[16,5,19,21],[16,22,19,25],[16,27,16,34],[17,26,19,48],[20,1,21,4],[20,5,21,10],[20,11,21,11],[20,12,21,14],[20,15,21,15],[32,17,32,18],[32,19,32,20],[26,36,26,42],[28,4,28,6],[28,7,28,19],[28,25,28,29],[28,31,28,33],[28,35,28,47],[20,16,21,19],[20,22,21,25],[20,26,21,53],[34,14,34,15],[35,9,35,10],[35,11,35,12],[35,14,35,15],[32,9,32,10],[32,11,32,12],[32,13,32,14],[32,15,32,16],[34,9,34,12],[36,4,36,7],[36,27,36,28],[40,4,40,7],[41,26,41,29],[41,31,41,34],[42,1,48,2],[42,4,42,7],[42,8,45,15],[42,16,45,17],[42,18,45,25],[30,1,41,2],[30,4,30,7],[30,27,30,28],[31,9,31,10],[31,11,31,12],[31,13,31,14],[31,15,31,16],[31,17,31,18],[31,19,31,20],[31,21,31,22],[46,29,47,31],[47,4,47,7],[47,32,48,53],[32,21,32,22],[51,7,52,14],[51,15,52,20],[51,21,52,29],[42,26,43,27],[42,29,43,30],[42,38,42,41],[42,42,42,51],[43,42,43,51],[44,29,45,30],[44,33,44,35],[44,37,44,39],[44,41,44,43],[45,42,45,51],[58,1,59,4],[58,5,59,34],[60,4,60,17],[61,4,61,17],[53,1,54,6],[54,29,54,34],[55,1,55,4],[55,5,55,34],[56,1,57,4],[56,5,57,34],[62,1,62,7],[62,9,62,11],[62,13,62,16],[62,18,62,20],[62,22,62,29],[63,1,64,7],[63,8,63,17],[63,18,63,19],[63,20,63,21],[63,22,63,23],[65,8,65,29],[66,5,66,7],[66,8,66,18],[66,19,66,21],[66,22,66,29],[63,24,63,25],[63,26,63,27],[63,28,63,29],[64,8,64,17],[64,18,64,19],[64,20,64,21],[64,22,64,23],[64,24,64,25],[64,26,64,27],[64,28,64,29],[72,22,72,29],[4,24,5,30],[47,8,47,25],[51,30,52,33],[70,19,70,21],[70,22,70,29],[71,1,72,4],[71,5,71,7],[71,8,71,29],[72,5,72,7],[72,8,72,18],[72,19,72,21],[67,1,68,4],[67,5,67,7],[67,8,67,29],[68,5,68,7],[68,8,68,29],[69,1,70,4],[69,5,69,7],[69,8,69,29],[70,5,70,7],[70,8,70,18],[65,1,66,4],[65,5,65,7]]}
["（国家公務員用）"]
[null,null,null,null,null,null,null,null,null,null,null,null,null,{"$f":"'解約・払出請求書（金融機関等用）'!N2","v":"□"},"財  産  形  成",null,null,null,null,null,"貯蓄解約・払出請求書"]
[null,null,null,null,null,null,null,null,null,null,null,null,null,{"$f":"'解約・払出請求書（金融機関等用）'!N3","v":"□"},"財産形成年金"]
[null,null,null,null,null,null,null,null,null,null,null,null,null,{"$f":"'解約・払出請求書（金融機関等用）'!N4","v":"□"},"財産形成住宅"]
[null,null,null,null,null,null,null,null,null,null,null,null,null,null,null,null,null,null,null,null,null,null,null,null,"所 属 省 庁 御 中"]
[]
[]
[null,"取扱金融\n機 関 等",null,null,null,{"$f":"'解約・払出請求書（金融機関等用）'!F8:S9","v":0},null,null,null,null,null,null,null,null,null,null,null,null,null,"御中",null,null,null,null,null,null,null,null,null,null,null,null,null,null,null,null,null,null,null,null,null,null,null,null,null,null,null,{"$f":"IF('解約・払出請求書（金融機関等用）'!AV8:BB9=\"\",\"\",'解約・払出請求書（金融機関等用）'!AV8:BB9)","v":"2024-07-18"}]
[]
[]
[null,"勤  務  先",null,null,null,{"$f":"'解約・払出請求書（金融機関等用）'!F11:V12","v":0},null,null,null,null,null,null,null,null,null,null,null,null,null,null,null,null,"職 員 番 号",null,null,null,null,null,null,null,null,null,null,null,null,null,null,null,null,null,null,null,null,null,null,null,null,null,null,"お届出印"]
[]
[null,"所属部課\n同  番  号",null,null,null,null,null,null,null,null,null,null,null,null,null,null,null,null,null,null,null,null,"ふりがな"]
[null,null,null,null,null,null,null,null,null,null,null,null,null,null,null,null,null,null,null,null,null,null,"氏　    名"]
[]
[null,null,null,null,null,null,null,null,null,null,null,null,null,null,null,null,null,null,null,null,null,null,"ふりがな",null,null,null,{"$f":"'解約・払出請求書（金融機関等用）'!AA16:AW16","v":0},null,null,null,null,null,null,null,null,null,null,null,null,null,null,null,null,null,null,null,null,null,null,"銀行・労金・信託・信用金庫・信用組合の場合記入は不要"]
[null,"備　　考",null,null,null,null,null,null,null,null,null,null,null,null,null,null,null,null,null,null,null,null,"住　    所",null,null,null,"(〒",{"$f":"'解約・払出請求書（金融機関等用）'!AB17:AI17","v":0},null,null,null,null,null,null,null,")"]
[null,null,null,null,null,null,null,null,null,null,null,null,null,null,null,null,null,null,null,null,null,null,null,null,null,null,{"$f":"'解約・払出請求書（金融機関等用）'!AA18:AW20","v":0}]
[]
[]
[null,"生年月日",null,null,null,{"$f":"'解約・払出請求書（金融機関等用）'!F21:K22","v":"00:00:00"},null,null,null,null,null,"(満",{"$f":"'解約・払出請求書（金融機関等用）'!M21:O22","v":124},null,null,"歳)","男女別",null,null,null,"男","女","電 話 番 号",null,null,null,{"$f":"'解約・払出請求書（金融機関等用）'!AA21:BB22","v":0}]
[null,null,null,null,null,null,null,null,null,null,null,null,null,null,null,null,null,null,null,null,{"$f":"'解約・払出請求書（金融機関等用）'!U22","v":"□"},{"$f":"'解約・払出請求書（金融機関等用）'!V22","v":"□"}]
[]
[null,null,null,"私の、財産形成貯蓄、財産形成年金貯蓄又は財産形成住宅貯蓄につき、取扱金融機関等に対し、下記のとおり解約・払出しの請求をします。"]
[null,null,null,"なお、下記「解約」の場合には、給与からの天引及び預入等を中止してください。"]
[]
[null,"解約\n払出\n理由",null,{"$f":"'解約・払出請求書（金融機関等用）'!D27","v":"□"},"住宅購入",null,null,{"$f":"'解約・払出請求書（金融機関等用）'!H27","v":"□"},"住宅の新築",null,null,null,{"$f":"'解約・払出請求書（金融機関等用）'!M27","v":"□"},"住宅増改築",null,null,null,null,null,null,null,null,"提出\n書類",null,{"$f":"'解約・払出請求書（金融機関等用）'!Y27","v":"□"},"売買契約書",null,null,null,{"$f":"'解約・払出請求書（金融機関等用）'!AD27","v":"□"},"工事請負契約書",null,null,null,null,{"$f":"'解約・払出請求書（金融機関等用）'!AJ27","v":"□"},"住宅の登記事項証明書"]
[]
[null,null,null,{"$f":"'解約・払出請求書（金融機関等用）'!D29","v":"□"},"その他（",null,null,{"$f":"'解約・払出請求書（金融機関等用）'!H29:T29","v":""},null,null,null,null,null,null,null,null,null,null,null,null,"）",null,null,null,{"$f":"'解約・払出請求書（金融機関等用）'!Y29","v":"□"},"住民票の写し",null,null,null,null,{"$f":"'解約・払出請求書（金融機関等用）'!AE29","v":"□"},"その他",null,null,null,"（住宅貯蓄の払出しの場合の提出書類）"]
[]
[null,"解約・払出内容",null,{"$f":"'解約・払出請求書（金融機関等用）'!D31","v":"□"},"一 部 払 出",null,null,null,"一部払出請求額",null,null,null,null,null,null,null,null,null,null,null,null,null,null,null,null,null,null,"（注）",null,"1.","年金貯蓄の一部払出し及び住宅貯蓄の住宅取得等目的以外の一部"]
[null,null,null,null,null,null,null,null,null,"百万",null,null,null,null,null,"千",null,null,null,null,null,"円",null,null,null,null,null,null,null,null,"払出しはできません。"]
[null,null,null,null,null,null,null,null,null,{"$f":"'解約・払出請求書（金融機関等用）'!J33:K33","v":""},null,{"$f":"'解約・払出請求書（金融機関等用）'!L33:M33","v":""},null,{"$f":"'解約・払出請求書（金融機関等用）'!N33:O33","v":""},null,{"$f":"'解約・払出請求書（金融機関等用）'!P33:Q33","v":""},null,{"$f":"'解約・払出請求書（金融機関等用）'!R33:S33","v":""},null,{"$f":"'解約・払出請求書（金融機関等用）'!T33:U33","v":""},null,{"$f":"'解約・払出請求書（金融機関等用）'!V33:W33","v":""},null,null,null,null,null,null,null,"2.","自動継続定期預金、期日指定定期預金、生命・損害保険の場合は、"]
[null,null,null,null,null,null,null,null,null,"（ゆうちょ銀行の証書払等請求の場合）",null,null,null,null,null,null,null,null,null,null,null,null,null,null,null,null,null,null,null,null,"概算払出請求額（千円単位（期日指定定期預金の場合１万円以上））"]
[null,null,null,null,null,null,null,null,null,{"$f":"'解約・払出請求書（金融機関等用）'!$J$35","v":""},null,null,null,"年",{"$f":"'解約・払出請求書（金融機関等用）'!$O$35:$P$35","v":""},null,"月分から",null,null,null,null,null,null,null,null,null,null,null,null,null,"を記入してください。"]
[null,null,null,null,null,null,null,null,null,{"$f":"'解約・払出請求書（金融機関等用）'!$J$36","v":""},null,{"$f":"IF('解約・払出請求書（金融機関等用）'!$L$36:$M$36=\"\",\"\",'解約・払出請求書（金融機関等用）'!$L$36:$M$36)","v":""},null,"年",{"$f":"'解約・払出請求書（金融機関等用）'!$O$36:$P$36","v":""},null,"月分まで",null,null,null,null,null,null,null,null,null,null,null,null,"3.","積立定期預金の場合、満期時以外は一部払出しはできません。"]
[null,null,null,{"$f":"'解約・払出請求書（金融機関等用）'!D37","v":"□"},"全 額 払 出",null,null,null,"口座を残し、全額払い出す。",null,null,null,null,null,null,null,null,null,null,null,null,null,null,null,null,null,null,"（注）",null,"1.","定期預金、有価証券、生命保険及びゆうちょ銀行の一般財産形成"]
[null,null,null,null,null,null,null,null,null,null,null,null,null,null,null,null,null,null,null,null,null,null,null,null,null,null,null,null,null,null,"貯蓄の場合に限られます。"]
[null,null,null,null,null,null,null,null,null,null,null,null,null,null,null,null,null,null,null,null,null,null,null,null,null,null,null,null,null,"2.","年金貯蓄の全額払い出しはできません。"]
[null,null,null,null,null,null,null,null,null,null,null,null,null,null,null,null,null,null,null,null,null,null,null,null,null,null,null,null,null,"3.","積立定期預金の場合、満期時以外は全額払出しはできません。"]
[null,null,null,{"$f":"'解約・払出請求書（金融機関等用）'!D41","v":"□"},"解　　  約",null,null,null,"口座を解約し、全額払い出す。",null,null,null,null,null,null,null,null,null,"（注）年金・住宅貯蓄の場合、下記の廃止申告書にも記入してください。"]
[null,null,null,null,null,null,null,null,null,"（生命保険の場合、次により選択してください。",null,null,null,null,null,null,null,null,null,null,null,null,null,null,"ー",{"$f":"'解約・払出請求書（金融機関等用）'!Z42","v":"□"},"中途解約",null,null,null,{"$f":"'解約・払出請求書（金融機関等用）'!AE42","v":"□"},"満期払出",null,null,null,"）"]
[null,"受取方法",null,{"$f":"'解約・払出請求書（金融機関等用）'!D43","v":"□"},"口 座 振 込",null,null,null,{"$f":"'解約・払出請求書（金融機関等用）'!$I$43:$P$46","v":""},null,null,null,null,null,null,null,"銀行\n金庫\n組合",null,{"$f":"'解約・払出請求書（金融機関等用）'!$S$43:$Z$46","v":""},null,null,null,null,null,null,null,"支店",null,null,"名義",null,{"$f":"'解約・払出請求書（金融機関等用）'!AF43","v":"□"},"請求者",null,null,null,null,null,"（ふりがな）",null,null,null,{"$f":"'解約・払出請求書（金融機関等用）'!$AQ$43:$AZ$43","v":""}]
[null,null,null,null,null,null,null,null,null,null,null,null,null,null,null,null,null,null,null,null,null,null,null,null,null,null,null,null,null,null,null,{"$f":"'解約・払出請求書（金融機関等用）'!AF44","v":"□"},"その他（証券契約を除く）",null,null,null,null,null,null,null,null,null,{"$f":"'解約・払出請求書（金融機関等用）'!$AQ$44:$AZ$44","v":""}]
[null,null,null,null,null,null,null,null,null,null,null,null,null,null,null,null,null,null,null,null,null,null,null,null,null,null,null,null,null,"種目",null,null,{"$f":"'解約・払出請求書（金融機関等用）'!AG45","v":"□"},"普通預金",null,null,{"$f":"'解約・払出請求書（金融機関等用）'!AK45","v":"□"},"当座預金",null,null,{"$f":"'解約・払出請求書（金融機関等用）'!AO45","v":"□"},"その他"]
[null,null,null,null,null,null,null,null,null,null,null,null,null,null,null,null,null,null,null,null,null,null,null,null,null,null,null,null,null,null,null,null,null,null,null,null,null,null,null,null,null,"（",{"$f":"'解約・払出請求書（金融機関等用）'!$AQ$46:$AZ$46","v":""},null,null,null,null,null,null,null,null,null,"）"]
[null,null,null,null,null,null,null,null,null,null,null,null,null,null,null,null,null,null,null,null,null,null,null,null,null,null,null,null,null,"口座番号"]
[null,null,null,{"$f":"'解約・払出請求書（金融機関等用）'!D48","v":"□"},"そ   の   他",null,null,null,{"$f":"'解約・払出請求書（金融機関等用）'!I48:Z48","v":""},null,null,null,null,null,null,null,null,null,null,null,null,null,null,null,null,null,null,null,null,null,null,null,{"$f":"'解約・払出請求書（金融機関等用）'!$AG$48:$BB$49","v":""}]
[null,null,null,null,null,null,null,null,null,null,null,null,null,null,null,null,null,null,null,"（ゆうちょ銀行その他の場合）"]
[]
[]
[null,null,null,null,null,null,null,"財産形成非課税",null,null,null,null,null,null,null,{"$f":"'解約・払出請求書（金融機関等用）'!P52:U53","v":"年金・住宅"},null,null,null,null,null,"貯蓄廃止申告書",null,null,null,null,null,null,null,null,"（勤務先控）"]
[]
[]
[null,null,null,null,null,null,null,"税　務　署　長　殿",null,null,null,null,null,null,null,null,null,null,null,null,null,null,null,null,null,null,null,null,null,{"$f":"'解約・払出請求書（金融機関等用）'!AD55:AI55","v":"　　年　　月　　日"}]
[null,"ふりがな"]
[null,"氏　　名"]
[]
[null,"住　　所",null,null,null,{"$f":"'解約・払出請求書（金融機関等用）'!F59:AI60","v":""}]
[]
[null,null,null,null,{"$f":"'解約・払出請求書（金融機関等用）'!E61:R61","v":"財産形成年金貯蓄につき租税特別措置法第４条の３第１項"}]
[null,"下記の",null,null,{"$f":"'解約・払出請求書（金融機関等用）'!E62:R62","v":"財産形成住宅貯蓄につき租税特別措置法第４条の２第１項"},null,null,null,null,null,null,null,null,null,null,null,null,null,null,"の規定の適用を受けることをやめたいので、この旨申告します。"]
[null,"種　　　　　　別",null,null,null,null,null,null,{"$f":"'解約・払出請求書（金融機関等用）'!I63","v":"□"},"預貯金",null,null,{"$f":"'解約・払出請求書（金融機関等用）'!M63","v":"□"},"合同運用信託",null,null,null,{"$f":"'解約・払出請求書（金融機関等用）'!R63","v":"□"},"有価証券",null,null,{"$f":"'解約・払出請求書（金融機関等用）'!V63","v":"□"},"生命・損害保険の保険料"]
[null,"最　高　限　度　額",null,null,null,null,null,null,"百万",null,null,null,null,null,null,null,null,null,null,null,null,null,"千",null,null,null,null,null,"円"]
[null,null,null,null,null,null,null,null,{"$f":"'解約・払出請求書（金融機関等用）'!I65:R65","v":""},null,null,null,null,null,null,null,null,null,{"$f":"'解約・払出請求書（金融機関等用）'!S65:T65","v":""},null,{"$f":"'解約・払出請求書（金融機関等用）'!U65:V65","v":""},null,{"$f":"'解約・払出請求書（金融機関等用）'!W65:X65","v":""},null,{"$f":"'解約・払出請求書（金融機関等用）'!Y65:Z65","v":""},null,{"$f":"'解約・払出請求書（金融機関等用）'!AA65:AB65","v":""},null,{"$f":"'解約・払出請求書（金融機関等用）'!AC65:AD65","v":""}]
[null,"受入機関の営業所等",null,null,null,"所在地",null,null,{"$f":"'解約・払出請求書（金融機関等用）'!I66:AD66","v":""}]
[null,null,null,null,null,"名　称",null,null,{"$f":"'解約・払出請求書（金融機関等用）'!I67:S67","v":""},null,null,null,null,null,null,null,null,null,null,"法人番号"]
[null,"勤　務　先",null,null,null,"所在地",null,null,{"$f":"'解約・払出請求書（金融機関等用）'!I68:AD68","v":""}]
[null,null,null,null,null,"名　称",null,null,{"$f":"'解約・払出請求書（金融機関等用）'!I69:AD69","v":""}]
[null,"賃金の支払者",null,null,null,"所在地",null,null,{"$f":"'解約・払出請求書（金融機関等用）'!I70:AD70","v":""}]
[null,null,null,null,null,"名　称",null,null,{"$f":"'解約・払出請求書（金融機関等用）'!I71:S71","v":""},null,null,null,null,null,null,null,null,null,null,"法人番号",null,null,{"$f":"'解約・払出請求書（金融機関等用）'!W71:AD71","v":""}]
[null,"事務代行先",null,null,null,"所在地"]
[null,null,null,null,null,"名　称",null,null,null,null,null,null,null,null,null,null,null,null,null,"法人番号"]

{"sheet":"解約・払出請求書（加入者控）","index":3,"n_rows":73,"n_cols":53,"rows_kept":73,"cut":false,"hidden":false,"merged":[[1,14,1,18],[1,20,3,36],[2,14,2,18],[3,14,3,18],[7,1,8,4],[7,19,8,20],[7,47,8,53],[10,1,11,4],[10,5,11,21],[10,22,11,25],[10,26,11,27],[10,28,11,29],[10,30,11,31],[10,32,11,33],[10,34,11,35],[10,49,10,53],[11,49,14,53],[12,1,15,4],[12,5,13,21],[12,22,12,25],[12,26,12,48],[13,22,14,25],[13,26,14,48],[14,5,15,11],[14,12,15,12],[10,36,11,37],[10,38,11,39],[10,40,11,41],[10,42,11,43],[10,44,11,45],[10,46,11,48],[14,19,15,19],[14,20,15,20],[14,21,15,21],[15,22,15,25],[15,26,15,48],[15,49,19,53],[14,13,15,13],[14,14,15,14],[14,15,15,15],[14,16,15,16],[14,17,15,17],[14,18,15,18],[26,1,28,2],[26,4,26,6],[26,8,26,11],[26,13,26,16],[26,22,28,23],[26,25,26,28],[26,30,26,34],[16,1,19,4],[16,5,19,21],[16,22,19,25],[16,27,16,34],[17,26,19,48],[20,1,21,4],[20,5,21,10],[20,11,21,11],[20,12,21,14],[20,15,21,15],[26,36,26,42],[28,4,28,6],[28,7,28,19],[28,25,28,29],[28,31,28,33],[28,35,28,47],[20,16,21,19],[20,22,21,25],[20,26,21,53],[32,9,32,10],[32,11,32,12],[32,13,32,14],[32,15,32,16],[34,9,34,12],[35,9,35,12],[36,4,36,7],[32,17,32,18],[32,19,32,20],[36,27,36,28],[40,4,40,7],[41,26,41,29],[41,31,41,34],[42,1,48,2],[42,4,42,7],[42,8,45,15],[42,16,45,17],[42,18,45,25],[30,1,41,2],[30,4,30,7],[30,27,30,28],[31,9,31,10],[31,11,31,12],[31,13,31,14],[31,15,31,16],[31,17,31,18],[31,19,31,20],[31,21,31,22],[42,26,43,27],[42,29,43,30],[32,21,32,22],[34,14,34,15],[35,14,35,15],[42,38,42,41],[42,42,42,51],[43,42,43,51],[44,29,45,30],[44,33,44,35],[44,37,44,39],[44,41,44,43],[45,42,45,51],[53,1,54,6],[54,29,54,34],[55,1,55,4],[55,5,55,34],[56,1,57,4],[56,5,57,34],[46,29,47,31],[47,4,47,7],[47,8,47,25],[47,32,48,53],[51,7,52,14],[51,15,52,20],[51,21,52,29],[51,30,52,33],[63,1,64,7],[63,8,63,17],[63,18,63,19],[63,20,63,21],[63,22,63,23],[63,24,63,25],[58,1,59,4],[58,5,59,34],[60,4,60,17],[61,4,61,17],[62,1,62,7],[62,9,62,11],[62,13,62,16],[62,18,62,20],[62,22,62,29],[66,8,66,18],[66,19,66,21],[66,22,66,29],[63,26,63,27],[63,28,63,29],[64,8,64,17],[64,18,64,19],[64,20,64,21],[64,22,64,23],[64,24,64,25],[64,26,64,27],[64,28,64,29],[71,1,72,4],[71,5,71,7],[71,8,71,29],[72,5,72,7],[72,8,72,18],[72,19,72,21],[72,22,72,29],[7,5,8,18],[67,1,68,4],[67,5,67,7],[67,8,67,29],[68,5,68,7],[68,8,68,29],[69,1,70,4],[69,5,69,7],[69,8,69,29],[70,5,70,7],[70,8,70,18],[70,19,70,21],[70,22,70,29],[65,1,66,4],[65,5,65,7],[65,8,65,29],[66,5,66,7]]}
["（国家公務員用）"]
[null,null,null,null,null,null,null,null,null,null,null,null,null,{"$f":"'解約・払出請求書（勤務先用）'!N2","v":"□"},"財  産  形  成",null,null,null,null,null,"貯蓄解約・払出請求書"]
[null,null,null,null,null,null,null,null,null,null,null,null,null,{"$f":"'解約・払出請求書（勤務先用）'!N3","v":"□"},"財産形成年金"]
[null,null,null,null,null,null,null,null,null,null,null,null,null,{"$f":"'解約・払出請求書（勤務先用）'!N4","v":"□"},"財産形成住宅"]
[]
[]
[]
[null,"取扱金融\n機 関 等",null,null,null,{"$f":"'解約・払出請求書（勤務先用）'!F8:P9","v":0},null,null,null,null,null,null,null,null,null,null,null,null,null,"御中",null,null,null,null,null,null,null,null,null,null,null,null,null,null,null,null,null,null,null,null,null,null,null,null,null,null,null,{"$f":"'解約・払出請求書（勤務先用）'!AV8:BB9","v":"2024-07-18"}]
[]
[]
[null,"勤  務  先",null,null,null,{"$f":"'解約・払出請求書（勤務先用）'!F11:V12","v":0},null,null,null,null,null,null,null,null,null,null,null,null,null,null,null,null,"職 員 番 号",null,null,null,null,null,null,null,null,null,null,null,null,null,null,null,null,null,null,null,null,null,null,null,null,null,null,"お届出印"]
[]
[null,"所属部課\n同  番  号",null,null,null,null,null,null,null,null,null,null,null,null,null,null,null,null,null,null,null,null,"ふりがな"]
[null,null,null,null,null,null,null,null,null,null,null,null,null,null,null,null,null,null,null,null,null,null,"氏　    名"]
[]
[null,null,null,null,null,null,null,null,null,null,null,null,null,null,null,null,null,null,null,null,null,null,"ふりがな",null,null,null,{"$f":"'解約・払出請求書（勤務先用）'!AA16:AW16","v":0},null,null,null,null,null,null,null,null,null,null,null,null,null,null,null,null,null,null,null,null,null,null,"銀行・労金・信託・信用金庫・信用組合の場合記入は不要"]
[null,"備　　考",null,null,null,null,null,null,null,null,null,null,null,null,null,null,null,null,null,null,null,null,"住　    所",null,null,null,"(〒",{"$f":"'解約・払出請求書（勤務先用）'!AB17:AI17","v":0},null,null,null,null,null,null,null,")"]
[null,null,null,null,null,null,null,null,null,null,null,null,null,null,null,null,null,null,null,null,null,null,null,null,null,null,{"$f":"'解約・払出請求書（勤務先用）'!AA18:AW20","v":0}]
[]
[]
[null,"生年月日",null,null,null,{"$f":"'解約・払出請求書（勤務先用）'!F21:K22","v":"00:00:00"},null,null,null,null,null,"(満",{"$f":"'解約・払出請求書（勤務先用）'!M21:O22","v":124},null,null,"歳)","男女別",null,null,null,"男","女","電 話 番 号",null,null,null,{"$f":"'解約・払出請求書（勤務先用）'!AA21:BB22","v":0}]
[null,null,null,null,null,null,null,null,null,null,null,null,null,null,null,null,null,null,null,null,{"$f":"'解約・払出請求書（勤務先用）'!U22","v":"□"},{"$f":"'解約・払出請求書（勤務先用）'!V22","v":"□"}]
[]
[null,null,null,"私の、財産形成貯蓄、財産形成年金貯蓄又は財産形成住宅貯蓄につき、下記のとおり解約・払出しの請求をしますので、貴行（社・金庫・組合）所定の計算方法により計算のうえ、払い出して"]
[null,null,"ください。なお、振込手数料等を要する場合には、払出金から差し引いてください。"]
[]
[null,"解約\n払出\n理由",null,{"$f":"'解約・払出請求書（勤務先用）'!D27","v":"□"},"住宅購入",null,null,{"$f":"'解約・払出請求書（勤務先用）'!H27","v":"□"},"住宅の新築",null,null,null,{"$f":"'解約・払出請求書（勤務先用）'!M27","v":"□"},"住宅増改築",null,null,null,null,null,null,null,null,"提出\n書類",null,{"$f":"'解約・払出請求書（勤務先用）'!Y27","v":"□"},"売買契約書",null,null,null,{"$f":"'解約・払出請求書（勤務先用）'!AD27","v":"□"},"工事請負契約書",null,null,null,null,{"$f":"'解約・払出請求書（勤務先用）'!AJ27","v":"□"},"住宅の登記事項証明書"]
[]
[null,null,null,{"$f":"'解約・払出請求書（勤務先用）'!D29","v":"□"},"その他（",null,null,{"$f":"'解約・払出請求書（勤務先用）'!H29:T29","v":""},null,null,null,null,null,null,null,null,null,null,null,null,"）",null,null,null,{"$f":"'解約・払出請求書（勤務先用）'!Y29","v":"□"},"住民票の写し",null,null,null,null,{"$f":"'解約・払出請求書（勤務先用）'!AE29","v":"□"},"その他",null,null,null,"（住宅貯蓄の払出しの場合の提出書類）"]
[]
[null,"解約・払出内容",null,{"$f":"'解約・払出請求書（勤務先用）'!D31","v":"□"},"一 部 払 出",null,null,null,"一部払出請求額",null,null,null,null,null,null,null,null,null,null,null,null,null,null,null,null,null,null,"（注）",null,"1.","年金貯蓄の一部払出し及び住宅貯蓄の住宅取得等目的以外の一部"]
[null,null,null,null,null,null,null,null,null,"百万",null,null,null,null,null,"千",null,null,null,null,null,"円",null,null,null,null,null,null,null,null,"払出しはできません。"]
[null,null,null,null,null,null,null,null,null,{"$f":"'解約・払出請求書（勤務先用）'!J33:K33","v":""},null,{"$f":"'解約・払出請求書（勤務先用）'!L33:M33","v":""},null,{"$f":"'解約・払出請求書（勤務先用）'!N33:O33","v":""},null,{"$f":"'解約・払出請求書（勤務先用）'!P33:Q33","v":""},null,{"$f":"'解約・払出請求書（勤務先用）'!R33:S33","v":""},null,{"$f":"'解約・払出請求書（勤務先用）'!T33:U33","v":""},null,{"$f":"'解約・払出請求書（勤務先用）'!V33:W33","v":""},null,null,null,null,null,null,null,"2.","自動継続定期預金、期日指定定期預金、生命・損害保険の場合は、"]
[null,null,null,null,null,null,null,null,null,"（ゆうちょ銀行の証書払等請求の場合）",null,null,null,null,null,null,null,null,null,null,null,null,null,null,null,null,null,null,null,null,"概算払出請求額（千円単位（期日指定定期預金の場合１万円以上））"]
[null,null,null,null,null,null,null,null,null,{"$f":"'解約・払出請求書（勤務先用）'!J35","v":""},null,null,null,"年",{"$f":"'解約・払出請求書（勤務先用）'!O35:P35","v":""},null,"月分から",null,null,null,null,null,null,null,null,null,null,null,null,null,"を記入してください。"]
[null,null,null,null,null,null,null,null,null,{"$f":"'解約・払出請求書（勤務先用）'!J36","v":""},null,null,null,"年",{"$f":"'解約・払出請求書（勤務先用）'!O36:P36","v":""},null,"月分まで",null,null,null,null,null,null,null,null,null,null,null,null,"3.","積立定期預金の場合、満期時以外は一部払出しはできません。"]
[null,null,null,{"$f":"'解約・払出請求書（勤務先用）'!D37","v":"□"},"全 額 払 出",null,null,null,"口座を残し、全額払い出す。",null,null,null,null,null,null,null,null,null,null,null,null,null,null,null,null,null,null,"（注）",null,"1.","定期預金、有価証券、生命保険及びゆうちょ銀行の一般財産形成"]
[null,null,null,null,null,null,null,null,null,null,null,null,null,null,null,null,null,null,null,null,null,null,null,null,null,null,null,null,null,null,"貯蓄の場合に限られます。"]
[null,null,null,null,null,null,null,null,null,null,null,null,null,null,null,null,null,null,null,null,null,null,null,null,null,null,null,null,null,"2.","年金貯蓄の全額払い出しはできません。"]
[null,null,null,null,null,null,null,null,null,null,null,null,null,null,null,null,null,null,null,null,null,null,null,null,null,null,null,null,null,"3.","積立定期預金の場合、満期時以外は全額払出しはできません。"]
[null,null,null,{"$f":"'解約・払出請求書（勤務先用）'!D41","v":"□"},"解　　  約",null,null,null,"口座を解約し、全額払い出す。",null,null,null,null,null,null,null,null,null,"（注）年金・住宅貯蓄の場合、下記の廃止申告書にも記入してください。"]
[null,null,null,null,null,null,null,null,null,"（生命保険の場合、次により選択してください。",null,null,null,null,null,null,null,null,null,null,null,null,null,null,"ー",{"$f":"'解約・払出請求書（勤務先用）'!Z42","v":"□"},"中途解約",null,null,null,{"$f":"'解約・払出請求書（勤務先用）'!AE42","v":"□"},"満期払出",null,null,null,"）"]
[null,"受取方法",null,{"$f":"'解約・払出請求書（勤務先用）'!D43","v":"□"},"口 座 振 込",null,null,null,{"$f":"'解約・払出請求書（勤務先用）'!I43:P46","v":""},null,null,null,null,null,null,null,"銀行\n金庫\n組合",null,{"$f":"'解約・払出請求書（勤務先用）'!S43:Z46","v":""},null,null,null,null,null,null,null,"支店",null,null,"名義",null,{"$f":"'解約・払出請求書（勤務先用）'!AF43","v":"□"},"請求者",null,null,null,null,null,"（ふりがな）",null,null,null,{"$f":"'解約・払出請求書（勤務先用）'!AQ43:AZ43","v":""}]
[null,null,null,null,null,null,null,null,null,null,null,null,null,null,null,null,null,null,null,null,null,null,null,null,null,null,null,null,null,null,null,{"$f":"'解約・払出請求書（勤務先用）'!AF44","v":"□"},"その他（証券契約を除く）",null,null,null,null,null,null,null,null,null,{"$f":"'解約・払出請求書（勤務先用）'!AQ44:AZ44","v":""}]
[null,null,null,null,null,null,null,null,null,null,null,null,null,null,null,null,null,null,null,null,null,null,null,null,null,null,null,null,null,"種目",null,null,{"$f":"'解約・払出請求書（勤務先用）'!AG45","v":"□"},"普通預金",null,null,{"$f":"'解約・払出請求書（勤務先用）'!AK45","v":"□"},"当座預金",null,null,{"$f":"'解約・払出請求書（勤務先用）'!AO45","v":"□"},"その他"]
[null,null,null,null,null,null,null,null,null,null,null,null,null,null,null,null,null,null,null,null,null,null,null,null,null,null,null,null,null,null,null,null,null,null,null,null,null,null,null,null,null,"（",{"$f":"'解約・払出請求書（勤務先用）'!AQ46:AZ46","v":""},null,null,null,null,null,null,null,null,null,"）"]
[null,null,null,null,null,null,null,null,null,null,null,null,null,null,null,null,null,null,null,null,null,null,null,null,null,null,null,null,null,"口座番号"]
[null,null,null,{"$f":"'解約・払出請求書（勤務先用）'!D48","v":"□"},"そ   の   他",null,null,null,{"$f":"'解約・払出請求書（勤務先用）'!I48:Z48","v":""},null,null,null,null,null,null,null,null,null,null,null,null,null,null,null,null,null,null,null,null,null,null,null,{"$f":"'解約・払出請求書（勤務先用）'!AG48:BB49","v":""}]
[null,null,null,null,null,null,null,null,null,null,null,null,null,null,null,null,null,null,null,"（ゆうちょ銀行その他の場合）"]
[]
[]
[null,null,null,null,null,null,null,"財産形成非課税",null,null,null,null,null,null,null,{"$f":"'解約・払出請求書（勤務先用）'!P52:U53","v":"年金・住宅"},null,null,null,null,null,"貯蓄廃止申告書",null,null,null,null,null,null,null,null,"（加入者控）"]
[]
[]
[null,null,null,null,null,null,null,"税　務　署　長　殿",null,null,null,null,null,null,null,null,null,null,null,null,null,null,null,null,null,null,null,null,null,{"$f":"'解約・払出請求書（勤務先用）'!AD55:AI55","v":"　　年　　月　　日"}]
[null,"ふりがな"]
[null,"氏　　名"]
[]
[null,"住　　所",null,null,null,{"$f":"'解約・払出請求書（勤務先用）'!F59:AI60","v":""}]
[]
[null,null,null,null,{"$f":"'解約・払出請求書（勤務先用）'!E61:R61","v":"財産形成年金貯蓄につき租税特別措置法第４条の３第１項"}]
[null,"下記の",null,null,{"$f":"'解約・払出請求書（勤務先用）'!E62:R62","v":"財産形成住宅貯蓄につき租税特別措置法第４条の２第１項"},null,null,null,null,null,null,null,null,null,null,null,null,null,null,"の規定の適用を受けることをやめたいので、この旨申告します。"]
[null,"種　　　　　　別",null,null,null,null,null,null,{"$f":"'解約・払出請求書（勤務先用）'!I63","v":"□"},"預貯金",null,null,{"$f":"'解約・払出請求書（勤務先用）'!M63","v":"□"},"合同運用信託",null,null,null,{"$f":"'解約・払出請求書（勤務先用）'!R63","v":"□"},"有価証券",null,null,{"$f":"'解約・払出請求書（勤務先用）'!V63","v":"□"},"生命・損害保険の保険料"]
[null,"最　高　限　度　額",null,null,null,null,null,null,"百万",null,null,null,null,null,null,null,null,null,null,null,null,null,"千",null,null,null,null,null,"円"]
[null,null,null,null,null,null,null,null,{"$f":"'解約・払出請求書（勤務先用）'!I65:R65","v":""},null,null,null,null,null,null,null,null,null,{"$f":"'解約・払出請求書（勤務先用）'!S65:T65","v":""},null,{"$f":"'解約・払出請求書（勤務先用）'!U65:V65","v":""},null,{"$f":"'解約・払出請求書（勤務先用）'!W65:X65","v":""},null,{"$f":"'解約・払出請求書（勤務先用）'!Y65:Z65","v":""},null,{"$f":"'解約・払出請求書（勤務先用）'!AA65:AB65","v":""},null,{"$f":"'解約・払出請求書（勤務先用）'!AC65:AD65","v":""}]
[null,"受入機関の営業所等",null,null,null,"所在地",null,null,{"$f":"'解約・払出請求書（勤務先用）'!I66:AD66","v":""}]
[null,null,null,null,null,"名　称",null,null,{"$f":"'解約・払出請求書（勤務先用）'!I67:S67","v":""},null,null,null,null,null,null,null,null,null,null,"法人番号"]
[null,"勤　務　先",null,null,null,"所在地",null,null,{"$f":"'解約・払出請求書（勤務先用）'!I68:AD68","v":""}]
[null,null,null,null,null,"名　称",null,null,{"$f":"'解約・払出請求書（勤務先用）'!I69:AD69","v":""}]
[null,"賃金の支払者",null,null,null,"所在地",null,null,{"$f":"'解約・払出請求書（勤務先用）'!I70:AD70","v":""}]
[null,null,null,null,null,"名　称",null,null,{"$f":"'解約・払出請求書（勤務先用）'!I71:S71","v":""},null,null,null,null,null,null,null,null,null,null,"法人番号",null,null,{"$f":"'解約・払出請求書（勤務先用）'!W71:AD71","v":""}]
[null,"事務代行先",null,null,null,"所在地"]
[null,null,null,null,null,"名　称",null,null,null,null,null,null,null,null,null,null,null,null,null,"法人番号"]

{"sheet":"リスト","index":4,"n_rows":82,"n_cols":9,"rows_kept":82,"cut":false,"hidden":true,"merged":[]}
["勤務先","所在地","法人番号","貯蓄の種類",null,null,null,null,"取扱金融機関等"]
["最高裁判所","東京都千代田区隼町４－２",3000013000001,"期日指定定期預金（反復預入）","（租規第３条の11第１項第１号）","（兼 財産形成非課税年金 貯蓄申込書）","財産形成年金貯蓄につき租特法第４条の３第１項","財産形成年金貯蓄につき租税特別措置法第４条の３第１項","りそな銀行（旧あさひ）"]
["東京高等裁判所","東京都千代田区霞が関１－１－４",2000013010001,"定額貯金","（租規第３条の11第１項第２号）","（兼 財産形成非課税住宅 貯蓄申込書）","財産形成住宅貯蓄につき租特法第４条の２第１項","財産形成住宅貯蓄につき租税特別措置法第４条の２第１項","みずほ銀行（旧第一勧業）"]
["東京地方裁判所","東京都千代田区霞が関１－１－４",9000013030001,"自動継続定期預金","（租規第３条の11第１項第４号）",null,null,null,"みずほ銀行（旧富士）"]
["東京家庭裁判所","東京都千代田区霞が関１－１－２",8000013040001,"積立定期預金","（租規第３条の11第１項第５号）",null,null,null,"三菱ＵＦＪ銀行"]
["横浜地方裁判所","神奈川県横浜市中区日本大通９",8000013030002,"金銭信託","（租規第３条の11第１項第６号）",null,null,null,"三井住友銀行"]
["横浜家庭裁判所","神奈川県横浜市中区寿町１－２",7000013040002,"金銭信託プラス貸付信託","（租規第３条の11第１項第８号）",null,null,null,"みずほ信託銀行"]
["さいたま地方裁判所","埼玉県さいたま市浦和区高砂３－１６－４５",7000013030003,"利付金融債","（租規第３条の11第１項第９号）",null,null,null,"三菱ＵＦＪ信託銀行"]
["さいたま家庭裁判所","埼玉県さいたま市浦和区高砂３－１６－４５",6000013040003,"利付金融債（利子一括払）","（租規第３条の２第２号）",null,null,null,"三井住友信託銀行（旧住友）"]
["千葉地方裁判所","千葉県千葉市中央区中央４－１１－２７",6000013030004,"公社債投資信託","（租規第３条の２第４号）",null,null,null,"三井住友信託銀行（旧中央三井）"]
["千葉家庭裁判所","千葉県千葉市中央区中央４－１１－２７",5000013040004,"株式投資信託（50）","（租規第３条の２第５号）",null,null,null,"りそな銀行（旧大和）"]
["水戸地方裁判所","茨城県水戸市大町１－１－３８",5000013030005,"株式投資信託（30）","（租規第３条の２第６号）",null,null,null,"みずほ銀行（旧日本勧業）"]
["宇都宮地方裁判所","栃木県宇都宮市小幡１－１－３８",4000013030006,"国債プラス社債","（租規第３条の２第７号）",null,null,null,"ＳＢＩ新生銀行"]
["宇都宮家庭裁判所","栃木県宇都宮市小幡１－１－３８",3000013040006,"国債","（租規第３条の２第８号）",null,null,null,"野村證券株式会社"]
["前橋地方裁判所","群馬県前橋市大手町３－１－３４",3000013030007,"生命保険","（租規第３条の２第９号）",null,null,null,"大和証券株式会社"]
["前橋家庭裁判所","群馬県前橋市大手町３－１－３４",2000013040007,"損害保険",null,null,null,null,"ＳＭＢＣ日興証券株式会社"]
["静岡地方裁判所","静岡県静岡市葵区追手町１０－８０",2000013030008,null,null,null,null,null,"みずほ証券株式会社"]
["静岡家庭裁判所","静岡県静岡市葵区城内町１－２０",1000013040008,null,null,null,null,null,"岩井コスモ証券株式会社"]
["甲府地方裁判所","山梨県甲府市中央１－１０－７",1000013030009,null,null,null,null,null,"朝日生命保険相互会社"]
["長野地方裁判所","長野県長野市旭町１１０８",8000013030010,null,null,null,null,null,"富国生命保険相互会社"]
["新潟地方裁判所","新潟県新潟市中央区学校町通１－１",7000013030011,null,null,null,null,null,"北海道労働金庫"]
["新潟家庭裁判所","新潟県新潟市中央区川岸町１－５４－１",6000013040011,null,null,null,null,null,"東北労働金庫"]
["大阪高等裁判所","大阪府大阪市北区西天満２－１－１０",1000013010002,null,null,null,null,null,"中央労働金庫"]
["大阪地方裁判所","大阪府大阪市北区西天満２－１－１０",6000013030012,null,null,null,null,null,"新潟県労働金庫"]
["大阪家庭裁判所","大阪府大阪市中央区大手前４－１－１３",5000013040012,null,null,null,null,null,"長野県労働金庫"]
["京都地方裁判所","京都府京都市中京区菊屋町",5000013030013,null,null,null,null,null,"静岡県労働金庫"]
["京都家庭裁判所","京都府京都市左京区下鴨宮河町１",4000013040013,null,null,null,null,null,"北陸労働金庫"]
["神戸地方裁判所","兵庫県神戸市中央区橘通２－２－１",4000013030014,null,null,null,null,null,"東海労働金庫"]
["神戸家庭裁判所","兵庫県神戸市兵庫区荒田町３－４６－１",3000013040014,null,null,null,null,null,"近畿労働金庫"]
["奈良地方裁判所","奈良県奈良市登大路町３５",3000013030015,null,null,null,null,null,"中国労働金庫"]
["大津地方裁判所","滋賀県大津市京町３－１－２",2000013030016,null,null,null,null,null,"四国労働金庫"]
["和歌山地方裁判所","和歌山県和歌山市二番丁１",1000013030017,null,null,null,null,null,"九州労働金庫"]
["名古屋高等裁判所","愛知県名古屋市中区三の丸１－４－１",9000013010003,null,null,null,null,null,"沖縄県労働金庫"]
["名古屋地方裁判所","愛知県名古屋市中区三の丸１－４－１",9000013030018]
["名古屋家庭裁判所","愛知県名古屋市中区三の丸１－７－１",8000013040018]
["津地方裁判所","三重県津市中央３－１",8000013030019]
["岐阜地方裁判所","岐阜県岐阜市美江寺町２－４－１",6000013030020]
["福井地方裁判所","福井県福井市春山１－１－１",5000013030021]
["金沢地方裁判所","石川県金沢市丸の内７－１",4000013030022]
["富山地方裁判所","富山県富山市西田地方町２－９－１",3000013030023]
["広島高等裁判所","広島県広島市中区上八丁堀２－４３",8000013010004]
["広島地方裁判所","広島県広島市中区上八丁堀２－４３",2000013030024]
["広島家庭裁判所","広島県広島市中区上八丁堀１－６",1000013040024]
["山口地方裁判所","山口県山口市駅通り１－６－１",1000013030025]
["山口家庭裁判所","山口県山口市駅通り１－６－１",9000013040025]
["岡山地方裁判所","岡山県岡山市北区南方１－８－４２",9000013030026]
["鳥取地方裁判所","鳥取県鳥取市東町２－２２３",8000013030027]
["松江地方裁判所","島根県松江市母衣町６８",7000013030028]
["福岡高等裁判所","福岡県福岡市中央区六本松４－２－４",7000013010005]
["福岡地方裁判所","福岡県福岡市中央区六本松４－２－４",6000013030029]
["佐賀地方裁判所","佐賀県佐賀市中の小路３－２２",4000013030030]
["長崎地方裁判所","長崎県長崎市万才町９－２６",3000013030031]
["長崎家庭裁判所","長崎県長崎市万才町６－２５",2000013040031]
["大分地方裁判所","大分県大分市荷揚町７－１５",2000013030032]
["熊本地方裁判所","熊本県熊本市中央区京町１－１３－１１",1000013030033]
["熊本家庭裁判所","熊本県熊本市中央区千葉城町３－３１",9000013040033]
["鹿児島地方裁判所","鹿児島県鹿児島市山下町１３－４７",9000013030034]
["宮崎地方裁判所","宮崎県宮崎市旭２－３－１３",8000013030035]
["那覇地方裁判所","沖縄県那覇市樋川１－１４－１",7000013030036]
["那覇家庭裁判所","沖縄県那覇市樋川１－１４－１０",6000013040036]
["仙台高等裁判所","宮城県仙台市青葉区片平１－６－１",6000013010006]
["仙台地方裁判所","宮城県仙台市青葉区片平１－６－１",6000013030037]
["仙台家庭裁判所","宮城県仙台市青葉区片平１－６－１",5000013040037]
["福島地方裁判所","福島県福島市花園町５－３８",5000013030038]
["福島家庭裁判所","福島県福島市花園町５－３８",4000013040038]
["山形地方裁判所","山形県山形市旅篭町２－４－２２",4000013030039]
["盛岡地方裁判所","岩手県盛岡市内丸９－１",2000013030040]
["秋田地方裁判所","秋田県秋田市山王７－１－１",1000013030041]
["青森地方裁判所","青森県青森市長島１－３－２６",9000013030042]
["札幌高等裁判所","北海道札幌市中央区大通西１１",5000013010007]
["札幌地方裁判所","北海道札幌市中央区大通西１１",8000013030043]
["札幌家庭裁判所","北海道札幌市中央区大通西１２",7000013040043]
["函館地方裁判所","北海道函館市上新川町１－８",7000013030044]
["旭川地方裁判所","北海道旭川市花咲町４",6000013030045]
["釧路地方裁判所","北海道釧路市柏木町４－７",5000013030046]
["高松高等裁判所","香川県高松市丸の内１－３６",4000013010008]
["高松地方裁判所","香川県高松市丸の内１－３６",4000013030047]
["高松家庭裁判所","香川県高松市丸の内２－２７",3000013040047]
["徳島地方裁判所","徳島県徳島市徳島町１－５－１",3000013030048]
["高知地方裁判所","高知県高知市丸ノ内１－３－５",2000013030049]
["松山地方裁判所","愛媛県松山市一番町３－３－８",9000013030050]
["松山家庭裁判所","愛媛県松山市南堀端町２－１",8000013040050]